Cogmind - Beta 15 @@@ ROGUE MODE // 2025.05.09 @ 18:40:13 Player: N.W.L. Result: Core destroyed Performance ------------- Evolutions (6) 3000 Regions Visited (20) 4000 Robots Destroyed (277) 1385 Value Destroyed (10656) 10656 Prototype IDs (49) 980 Alien Tech Used (0) 0 Bonus (5442) 5442 TOTAL SCORE: 25463 Bonus ------- High Alert Combat Kills 1103 Follower Combat Kills 1686 Awakened Behemoth Slayer 1000 Entered Garrisons 400 Met Imprinter 300 Was Imprinted 300 Destroyed Z-Imprinter 1000 Triggered Deep Caves Wall 500 Exposed GOLEM Chamber 500 Built Enhanced Grunts 300 A7 Reached Mainframe 300 Met R17 at Cetus 500 Friendly Fire -2447 Cogmind --------- Core Integrity 0/1150 Matter 293/300 Energy 100/100 System Corruption 72% Temperature Cool (0) Movement Core (50) Location -4/Factory Parts ------- > --- POWER (2) -------- (None) > --- PROPULSION (4) --- Myomer Leg Assembled Alloy Leg Assembled Alloy Leg > --- UTILITY (10) ----- (None) > --- WEAPON (3) ------- (None) > --- INVENTORY (5) ---- Surveybot 24 Scanner Peak State ------------ > --- POWER ------------ Assembled Flux Generator > --- PROPULSION ------- Myomer Leg Myomer Leg Assembled Alloy Leg Assembled Alloy Leg > --- UTILITY ---------- Assembled Nanovents Assembled Nanovents Assembled Nanovents High-capacity Storage Unit Assembled Biocell Array Assembled Suspension Frame Assembled Combat Suite Assembled Alloy Armor GOLEM Unit > --- WEAPON ----------- Assembled Focal Cannon Assembled Focal Cannon Assembled Focal Cannon > --- INVENTORY -------- Zionite Light DM Reactor Myomer Leg Surveybot 24 Scanner Energy Filter Experimental Transmission Jammer Remote Force Field Mobile Refinery Mk. CCLXVII GOLEM Unit GOLEM Unit GOLEM Unit GOLEM Unit GOLEM Unit Latent Energy Streamer Long-range Missile Launcher CR-A16's Behemoth Slayer [Rating: 171] Favorites ----------- Power Zionite Light DM Reactor Engine Light Angular Momentum Engine Power Core Nuclear Core Reactor Zionite Light DM Reactor Propulsion Assembled Alloy Leg Treads Light Treads Leg Assembled Alloy Leg Wheel Armored Huge Wheel Hover Unit Zionite Glidesys I Utility Huge Storage Unit Device Assembled Nanovents Storage Huge Storage Unit Processor Advanced Terrain Scan Processor Hackware Hacking Suite Protection Zionite Weapon Casing Weapon Assembled Focal Cannon Energy Gun Small Laser Energy Cannon Assembled Focal Cannon Ballistic Gun Enhanced Autogun Launcher Rocket Launcher Special Weapon Mining Laser Slashing Weapon Makeshift Axe Piercing Weapon CR-A16's Pointy Stick Special Melee Weapon Improved Datajack Build | -11 -10 -10 -8 -8 -7 -7 -7 -7 -7 -6 -6 -6 -6 -6 -6 -5 -5 -4 -4 -4 ------- Run | Yrd Mat Sub Mat Gar Fac Low Low Zio Dee Pro Fac Ext Cet Arc Hub Fac Gar Fac Was Fac Slots Evolved 12 | . . . 4 . 2 . . . . . 2 . . . . 2 . 2 . . Power 1 | . . . . . . . . . . . 1 . . . . . . . . . Propulsion 2 | . . . 1 . 1 . . . . . . . . . . . . . . . Utility 8 | . . . 2 . 1 . . . . . 1 . . . . 2 . 2 . . Weapon 1 | . . . 1 . . . . . . . . . . . . . . . . . Parts Attached 158 | 7 . 7 43 5 2 10 10 4 39 1 4 5 1 4 . 5 4 3 1 3 Power 12 | 1 . . 4 . . . 1 . 5 . . 1 . . . . . . . . Engine 4 | 1 . . 2 . . . 1 . . . . . . . . . . . . . Core 4 | . . . 2 . . . . . 2 . . . . . . . . . . . Reactor 4 | . . . . . . . . . 3 . . 1 . . . . . . . . Propulsion 43 | 2 . 2 9 2 1 2 5 . 11 . . 2 1 . . . 3 3 . . Treads 21 | 2 . 1 5 2 . 2 5 . 1 . . 1 1 . . . 1 . . . Leg 10 | . . . . . . . . . 4 . . 1 . . . . 2 3 . . Wheel 6 | . . 1 4 . 1 . . . . . . . . . . . . . . . Hover 6 | . . . . . . . . . 6 . . . . . . . . . . . Flight . | . . . . . . . . . . . . . . . . . . . . . Utility 62 | 2 . 1 13 3 . 2 4 2 18 1 2 1 . 4 . 4 1 . 1 3 Device 24 | 1 . . 8 . . . . 1 5 1 1 . . 1 . 1 1 . 1 3 Storage 12 | 1 . 1 2 1 . . 3 . 3 . . . . . . 1 . . . . Processor 2 | . . . . . . . . . . . . 1 . . . 1 . . . . Hackware 6 | . . . 1 . . . . . . . 1 . . 3 . 1 . . . . Protection 18 | . . . 2 2 . 2 1 1 10 . . . . . . . . . . . Artifact . | . . . . . . . . . . . . . . . . . . . . . Weapon 41 | 2 . 4 17 . 1 6 . 2 5 . 2 1 . . . 1 . . . . Energy Gun 16 | 2 . 2 9 . . . . . 3 . . . . . . . . . . . Energy Cannon 5 | . . . . . 1 2 . . 1 . . 1 . . . . . . . . Ballistic Gun 6 | . . . 5 . . 1 . . . . . . . . . . . . . . Ballistic Cannon . | . . . . . . . . . . . . . . . . . . . . . Launcher 8 | . . 1 1 . . 3 . . . . 2 . . . . 1 . . . . Special Weapon 1 | . . 1 . . . . . . . . . . . . . . . . . . Impact Weapon . | . . . . . . . . . . . . . . . . . . . . . Slashing Weapon 3 | . . . 1 . . . . 2 . . . . . . . . . . . . Piercing Weapon 1 | . . . . . . . . . 1 . . . . . . . . . . . Special Melee Weapon 1 | . . . 1 . . . . . . . . . . . . . . . . . Unidentified Prototypes 22 | . . . 6 . . . . 1 9 . 2 1 1 . . 1 . . 1 . Parts Lost 91 | . . 4 8 3 1 4 13 . 27 . . 4 . . . 1 3 1 2 20 Power 9 | . . . 3 . . 1 . . 3 . . 1 . . . . . . . 1 Propulsion 28 | . . 3 1 1 . 1 7 . 10 . . 2 . . . . . . . 3 Utility 38 | . . . 1 2 1 1 3 . 11 . . 1 . . . 1 2 1 2 12 Weapon 16 | . . 1 3 . . 1 3 . 3 . . . . . . . 1 . . 4 Highest Loss Streak 19 | . . 3 2 2 1 3 8 . 6 . . 1 . . . 1 2 1 1 19 To Critical Strikes 1 | . . 1 . . . . . . . . . . . . . . . . . . Average Backups 16 | 1 5 6 18 22 22 22 21 21 12 19 18 18 18 18 19 15 14 14 12 2 Power . | . 1 . . . . . . 2 1 2 2 . 1 1 1 1 1 1 . . Propulsion 1 | . . . 4 7 8 7 4 2 . . . . . . . . . . . . Utility 8 | . 1 3 8 7 6 6 7 5 6 11 10 11 12 11 12 9 10 10 8 2 Weapon 5 | . 2 2 4 8 8 8 9 11 4 6 5 5 5 6 6 4 3 2 2 . Tool/Special . | . . . . . . . . . . . . . . . . . . . . . Unused Backups 34 | . . 1 10 . . . . 6 9 . . . . . . 1 . . 7 . Power 1 | . . 1 . . . . . . . . . . . . . . . . . . Propulsion 2 | . . . 1 . . . . . . . . . . . . . . . 1 . Utility 18 | . . . 7 . . . . . 4 . . . . . . 1 . . 6 . Weapon 13 | . . . 2 . . . . 6 5 . . . . . . . . . . . Tool/Special . | . . . . . . . . . . . . . . . . . . . . . Average Slot Usage (%) 85 | . 100 95 87 88 79 77 68 92 77 92 83 87 79 80 80 81 84 87 87 63 Engine 2 | . 14 14 2 9 7 3 2 7 . . . . . . . . . . . . Core 1 | . . . 6 . . . . . . . . . . . . . . . . . Reactor 3 | . . . . . . . . . 4 7 6 9 6 6 6 5 5 5 5 3 Treads 7 | . 28 22 9 8 3 3 19 23 2 . . . 2 6 6 5 2 . . . Leg 11 | . . . . . . . . . 12 30 25 24 17 13 13 11 16 20 21 18 Wheel 2 | . . . 8 9 11 10 3 . . . . . . . . . . . . . Device 14 | . 14 13 13 8 14 12 4 9 9 15 15 18 20 13 6 16 22 30 29 21 Storage 12 | . 14 14 8 9 7 7 9 24 11 15 13 13 13 11 13 10 11 10 8 3 Hackware 2 | . . . 8 9 7 7 4 . . . 2 . . 7 13 5 . . . . Protection 3 | . . . 2 8 3 8 7 3 8 . . . . . . 2 5 5 6 6 Energy Gun 4 | . 28 27 16 . . . . . 1 . . . . . . . . . . . Energy Cannon 11 | . . . . . 1 10 . 15 9 23 18 19 19 20 20 16 17 14 15 8 Ballistic Gun 2 | . . . 9 20 20 9 10 . . . . . . . . . . . . . Slashing Weapon 1 | . . . . 6 . 1 2 7 3 . . . . . . . . . . . Peak Build Rating 171 | 7 7 10 41 41 46 49 44 50 114 115 133 133 141 141 132 150 155 170 171 168 Average Rating 78 | 5 7 8 34 39 43 43 32 45 74 114 126 126 130 135 132 146 147 164 167 114 On Entrance 85 | . 7 7 10 41 39 46 42 39 42 114 114 133 126 141 132 132 150 145 170 168 Naked Turns . | . . . . . . . . . . . . . . . . . . . . . Heaviest Build 214 | 14 14 210 214 112 107 119 110 114 137 142 172 169 169 169 167 169 137 138 137 102 Greatest Support 133 | 40 40 40 60 28 56 56 88 63 108 108 108 108 75 60 60 60 108 133 130 130 Greatest Overweight (x) 21 | . . 10 21 5 5 3 3 1 6 1 1 3 2 2 2 2 2 1 1 . Average Overweight (x) 1 | . . . 3 3 1 2 2 1 . 1 1 1 2 2 2 1 1 . . . Largest Inventory Capacity 35 | 8 8 35 35 25 25 25 25 25 25 25 25 25 25 25 25 25 20 20 20 5 Average Capacity 21 | 7 8 8 24 25 25 25 25 25 16 25 25 25 25 25 25 20 20 20 16 5 Most Carried 25 | 4 7 9 25 25 25 25 25 25 25 25 25 25 25 25 24 24 20 20 20 5 Average Carried 19 | 1 6 7 20 24 24 23 22 24 14 25 24 24 24 24 24 20 19 19 16 3 Final Capacity 35 | 8 8 35 25 25 25 25 25 25 25 25 25 25 25 25 25 20 20 20 5 5 Final Carried 25 | 4 7 9 25 25 24 25 18 24 25 25 25 25 25 24 24 20 19 20 5 1 Class Distribution -------------------- 33% | Golem 17% | Mutant 17% | Scavenger-Mutant 9% | Tank 7% | Gunner 5% | Commander-Golem 3% | Scavenger-Tank Dominant Class ---------------- Mutant | -10/Materials Mutant | -10/Subcaves Tank | -8/Materials Mutant | -8/Garrison Gunner | -7/Factory Gunner | -7/Lower Caves Mutant | -7/Lower Caves Scavenger-Mutant | -7/Zion Scavenger-Mutant | -7/Deep Caves Golem | -6/Proximity Caves Golem | -6/Factory Golem | -6/Extension Commander-Golem | -6/Cetus Commander-Golem | -6/Archives Commander-Golem | -6/Hub_04(d) Golem | -5/Factory Golem | -5/Garrison Golem | -4/Factory Golem | -4/Waste Golem | -4/Factory Resources | -11 -10 -10 -8 -8 -7 -7 -7 -7 -7 -6 -6 -6 -6 -6 -6 -5 -5 -4 -4 -4 ----------- Run | Yrd Mat Sub Mat Gar Fac Low Low Zio Dee Pro Fac Ext Cet Arc Hub Fac Gar Fac Was Fac Matter Collected 4712 | 270 150 265 978 343 51 520 443 99 828 51 294 75 20 20 27 100 125 25 . 28 Remotely . | . . . . . . . . . . . . . . . . . . . . . Salvage Created 11795 | 117 235 308 2542 489 188 471 549 . 1363 71 952 1015 196 69 120 743 1252 590 206 319 Parts 628 | 15 27 24 142 31 16 22 11 . 46 12 54 55 11 5 3 52 61 22 2 17 Haulers Intercepted 9 | . 1 . 6 . . . . . . . 1 . . . . 1 . . . . Recyclers Shooed 2 | . . . 1 . . . . . . . . . . . . . . 1 . . Parts Field Recycled . | . . . . . . . . . . . . . . . . . . . . . Retrieved Matter . | . . . . . . . . . . . . . . . . . . . . . Parts Self-Destructed 60 | . . 10 . . . 19 13 6 . 12 . . . . . . . . . . Prevented 1 | . . . . . . 1 . . . . . . . . . . . . . . Kills | -11 -10 -10 -8 -8 -7 -7 -7 -7 -7 -6 -6 -6 -6 -6 -6 -5 -5 -4 -4 -4 ------- Run | Yrd Mat Sub Mat Gar Fac Low Low Zio Dee Pro Fac Ext Cet Arc Hub Fac Gar Fac Was Fac Combat Hostiles Destroyed 232 | . 6 8 38 11 1 11 12 . 48 3 20 11 2 . 2 20 21 9 1 8 Melee 5 | . . . . . . . 3 . 2 . . . . . . . . . . . Guns 73 | . 6 6 36 11 . 7 6 . 1 . . . . . . . . . . . Cannons 70 | . . . . . . 1 . . 1 3 13 11 2 . 2 8 21 4 1 3 AOE 77 | . . 2 . . 1 3 2 . 41 . 7 . . . . 12 . 4 . 5 Classes Destroyed 24 | 2 4 1 6 . . 1 . . 4 2 1 1 . . . . 1 . 1 . Worker 20 | 1 1 . 7 . 4 . . . . . 1 . . . . 5 . . . 1 Builder 17 | . 2 . 7 . 1 . . . . . . 2 . . . 4 . 1 . . Tunneler 7 | 5 . . 1 . . . . . . . . . . . . . . . . 1 Hauler 9 | . 1 . 6 . . . . . . . 1 . . . . 1 . . . . Recycler 5 | . . . 2 . 1 . . . . . . 1 . . . . . 1 . . Mechanic 1 | . . . 1 . . . . . . . . . . . . . . . . . Operator 8 | . . . 3 . 1 . . . . . 1 1 . 2 . . . . . . Drone 2 | . . . . . . . . . . 2 . . . . . . . . . . Watcher 12 | . 1 . 5 . 1 . . . . . . 3 2 . . . . . . . Swarmer 63 | . 6 2 9 5 . 4 . . . . 6 . . . . 13 8 5 . 5 Cutter 4 | . . . . . . . . . . . . . . . . . 4 . . . Grunt 56 | . . . 18 3 1 5 10 . . . 5 3 . . . 5 4 . . 2 Brawler 5 | . . . 1 . . 1 1 . . . . . . . . . 1 . . 1 Sentry 26 | . . . 10 3 . 1 1 . . . 4 4 . . . . 2 1 . . Hunter 10 | . . . . . . . . . . . 3 1 . . 2 . 2 2 . . Programmer 6 | . . . . . . . . . . 1 2 1 . . . 2 . . . . Behemoth 3 | . . . . . . . . . . . . 2 . . . . . 1 . . Compactor 1 | . . . . . . . . . . . . . . . . . . . 1 . Cetus Guard 2 | . . . . . . . . . . . . . 2 . . . . . . . Subdweller 6 | . . 6 . . . . . . . . . . . . . . . . . . Z-Technician 5 | . . . . . . . . . 5 . . . . . . . . . . . Z-Light 9 | . . . . . . . . . 9 . . . . . . . . . . . Samaritan 1 | . . . . . . 1 . . . . . . . . . . . . . . Assembler 2 | . . . . . . . . . 2 . . . . . . . . . . . Assembled 35 | . . . . . . . . . 35 . . . . . . . . . . . Golem 3 | . . . . . . . . . 3 . . . . . . . . . . . Best Kill Streak 37 | 3 3 2 9 11 7 4 4 . 37 2 10 3 1 2 2 12 5 8 1 6 Combat Bots Only 35 | . 3 2 6 11 1 4 4 . 35 2 10 2 1 . 2 6 5 6 1 5 Max Kills in Single Turn 11 | 1 1 2 2 1 3 2 2 . 11 1 2 3 1 1 1 5 2 6 1 6 Gunslinging 1 | . . 1 1 . . . 1 . . . . . . . . . . . . . Exploded 11 | . . 2 . . 1 2 2 . 11 . 2 . . . . 4 . 4 . 5 Melee 1 | . . . . . . . 1 . 1 . . . . . . . . . . . Uniques/NPCs Destroyed 1 | . . . . . . . . . 1 . . . . . . . . . . . Z-Imprinter (-7/Deep Caves) Combat | -11 -10 -10 -8 -8 -7 -7 -7 -7 -7 -6 -6 -6 -6 -6 -6 -5 -5 -4 -4 -4 -------- Run | Yrd Mat Sub Mat Gar Fac Low Low Zio Dee Pro Fac Ext Cet Arc Hub Fac Gar Fac Was Fac Hostile Shots Fired 1384 | . 27 46 179 91 81 68 191 . 149 . 117 133 17 1 31 80 75 59 2 37 Missed 396 | . 4 12 43 23 35 20 44 . 44 . 41 38 8 . 10 26 23 15 . 10 Hits 988 | . 23 34 136 68 46 48 147 . 105 . 76 95 9 1 21 54 52 44 2 27 Melee 8 | . . . 1 . . . . . . . . . . . . 1 4 . 2 . Projectile 980 | . 23 34 135 68 46 48 147 . 105 . 76 95 9 1 21 53 48 44 . 27 AOE 1 | . . . . . . . . . . . . . . . . . 1 . . . Critical Strikes 28 | . 1 2 5 2 1 1 4 . 1 . . 1 2 . . 4 1 2 . 1 Damage Taken 20029 | . 192 769 1896 829 422 702 1700 . 3287 . 965 1481 243 25 372 888 767 896 311 4284 Core 2998 | . 37 176 292 141 87 92 202 . 278 . 66 308 12 . 40 46 32 134 78 977 Absorbed by Shields 194 | . . . 78 . . . . . . . . 21 77 . . . 18 . . . Redirected to Shielding 582 | . . . 27 . . . . . 555 . . . . . . . . . . . Ignored by Resistances 529 | . . . . . . . . . . . . . . . . 72 167 181 14 95 Core Remaining (%) 46 | 100 . 14 . 21 . . . . . 5 . . . . 49 . 92 . . . Volleys Fired 748 | 17 26 67 166 22 9 32 27 . 49 12 46 60 23 5 11 48 56 10 35 27 Largest 3 | 2 2 2 3 3 3 3 3 . 3 3 3 3 3 3 3 3 3 3 3 3 Hottest 207 | 90 90 110 189 75 75 207 138 . 180 75 75 75 75 75 75 75 75 75 75 75 Shots Fired 1560 | 33 52 95 453 63 23 66 45 . 81 20 91 118 59 15 21 81 133 26 49 36 Gun 811 | 33 52 81 453 63 21 51 37 . 20 . . . . . . . . . . . Cannon 682 | . . . . . 2 9 4 . 32 20 84 118 59 15 21 74 133 26 49 36 Launcher 61 | . . 8 . . . 6 4 . 29 . 7 . . . . 7 . . . . Special 6 | . . 6 . . . . . . . . . . . . . . . . . . Kinetic 332 | . . . 160 63 21 51 37 . . . . . . . . . . . . . Thermal 1129 | 33 52 87 293 . . . . . 30 20 84 118 59 15 21 74 133 25 49 36 Explosive 61 | . . 8 . . . 6 4 . 29 . 7 . . . . 7 . . . . Electromagnetic 38 | . . . . . 2 9 4 . 22 . . . . . . . . 1 . . Robot Hit Streak 26 | 2 8 26 19 6 3 8 8 . 14 2 8 26 10 7 7 14 14 6 19 12 Robot Miss Streak 10 | 4 4 2 5 3 3 10 4 . 8 5 2 3 1 1 2 2 3 2 1 2 Penetration Max . | . . . . . . . . . . . . . . . . . . . . . Secondary Targets 14 | . 1 1 2 5 . 2 3 . . . . . . . . . . . . . Max Gunslinging Chain 1 | . 1 1 1 1 . 1 1 . . . . . . . . . . . . . Shots Hit Robots 900 | 13 23 63 285 42 8 38 47 . 51 3 45 59 38 7 14 32 75 24 19 14 Core Hits 558 | 6 12 20 117 17 11 31 48 . 117 3 27 24 16 3 4 36 33 15 2 16 Critical Kills . | . . . . . . . . . . . . . . . . . . . . . Critical Parts Destroyed . | . . . . . . . . . . . . . . . . . . . . . Critical Strikes 21 | 1 . 1 15 1 . . 3 . . . . . . . . . . . . . Burn 17 | 1 . 1 15 . . . . . . . . . . . . . . . . . Sever 4 | . . . . 1 . . 3 . . . . . . . . . . . . . Melee Attacks 91 | . . . 3 9 . 2 17 2 42 . . . 10 . . . . 6 . . Impact . | . . . . . . . . . . . . . . . . . . . . . Slashing 73 | . . . 3 9 . 2 17 2 40 . . . . . . . . . . . Piercing 18 | . . . . . . . . . 2 . . . 10 . . . . 6 . . Sneak Attacks 19 | . . . 2 . . . . . 7 . . . 10 . . . . . . . Combat Hostiles . | . . . . . . . . . . . . . . . . . . . . . Follow-up Attacks 1 | . . . . . . . . . 1 . . . . . . . . . . . Damage Inflicted 37050 | 146 336 1538 4749 1012 1068 1007 1389 . 5691 129 3083 3369 1806 490 553 3357 3490 1650 924 1263 Guns 8132 | 146 333 792 4595 722 146 608 644 . 146 . . . . . . . . . . . Cannons 15928 | . . . . . . 155 101 . 438 129 2083 3343 1334 490 552 1557 3490 760 924 572 Explosions 9834 | . . 746 . . 912 244 300 . 3501 . 1000 . . . . 1800 . 726 . 605 Melee 3022 | . . . 146 290 . . 344 . 1606 . . . 472 . . . . 164 . . Ramming 134 | . 3 . 8 . 10 . . . . . . 26 . . 1 . . . . 86 Kinetic 3494 | . . . 1374 722 146 608 644 . . . . . . . . . . . . . Thermal 20703 | 146 333 792 3221 . . . 45 . 268 129 2254 3343 1334 490 552 1557 3490 753 924 1072 Explosive 8136 | . . 746 . . 912 244 255 . 3428 . 829 . . . . 1722 . . . . Electromagnetic 1561 | . . . . . . 155 101 . 389 . . . . . . 78 . 733 . 105 Impact . | . . . . . . . . . . . . . . . . . . . . . Slashing 2289 | . . . 146 290 . . 344 . 1509 . . . . . . . . . . . Piercing 733 | . . . . . . . . . 97 . . . 472 . . . . 164 . . Highest Corruption 72 | . 2 2 5 5 2 2 2 2 . . . . . . . . 1 3 26 72 Average Corruption 5 | . 2 2 5 5 2 2 2 2 . . . . . . . . 1 3 18 40 Corruption Purged . | . . . . . . . . . . . . . . . . . . . . . Corruption Blocked . | . . . . . . . . . . . . . . . . . . . . . Effects 141 | . 1 24 38 17 1 8 7 3 . . . . . . . . 5 3 16 18 Message Errors 27 | . . 2 11 4 . 4 . . . . . . . . . . . . 2 4 Matter Fused 34 | . . 10 5 3 . 2 3 1 . . . . . . . . 1 2 3 4 Heat Flow Errors 18 | . . 4 8 2 1 . . 2 . . . . . . . . . . . 1 Energy Discharges 17 | . . 2 5 1 . 1 1 . . . . . . . . . . 1 3 3 Parts Rejected 1 | . . . . . . . 1 . . . . . . . . . . . . . Parts Fused 4 | . . 1 1 . . . . . . . . . . . . . 2 . . . Data Loss (minor) 18 | . 1 2 3 2 . 1 1 . . . . . . . . . 2 . 1 5 Data Loss (major) 6 | . . 1 3 2 . . . . . . . . . . . . . . . . Misfires 6 | . . 1 . 3 . . . . . . . . . . . . . . 1 1 Alerts 4 | . . 1 1 . . . 1 . . . . . . . . . . . 1 . Misdirections 1 | . . . . . . . . . . . . . . . . . . . 1 . Weapon Failures 5 | . . . 1 . . . . . . . . . . . . . . . 4 . Overload Shots . | . . . . . . . . . . . . . . . . . . . . . Overflow Damage 1920 | . . . . 18 118 . . . 688 . 424 176 28 . 19 148 241 42 . 18 Projectiles 775 | . . . . . . . . . . . 192 176 28 . 19 89 241 12 . 18 Explosions 577 | . . . . . 118 . . . 138 . 232 . . . . 59 . 30 . . Melee 568 | . . . . 18 . . . . 550 . . . . . . . . . . . Knockbacks . | . . . . . . . . . . . . . . . . . . . . . Impact . | . . . . . . . . . . . . . . . . . . . . . Kinetic . | . . . . . . . . . . . . . . . . . . . . . Secondary . | . . . . . . . . . . . . . . . . . . . . . Self-Inflicted Damage 388 | . . . 4 . 29 37 10 . 111 . 65 . . . . 46 . . . 86 Shots 9 | . . . . . 1 1 1 . 3 . 2 . . . . 1 . . . . Rammed 5 | . 1 . 3 . 1 . . . . . . . . . . . . . . . Targets Rammed 7 | . 1 . 3 . 1 . . . . . . 1 . . 1 . . . . . Kicked 2 | . . . . . . . . . . . . 1 . . 1 . . . . . Crushed . | . . . . . . . . . . . . . . . . . . . . . Highest Temperature 505 | 270 150 273 505 305 255 108 168 242 445 33 . 389 . . . . . 256 . 136 Average Temperature 114 | 98 56 115 114 157 85 39 52 113 145 18 . 150 . . . . . 148 . 75 Received Heat Transfer 4551 | . . 186 846 297 150 264 849 . 830 . 144 231 26 . 9 180 63 392 . 84 Effects 18 | 1 . . 9 3 . . . . 2 . . 3 . . . . . . . . Shutdowns 2 | . . . 2 . . . . . . . . . . . . . . . . . Energy Bleed 7 | 1 . . 2 2 . . . . 1 . . 1 . . . . . . . . Interference 7 | . . . 5 1 . . . . . . . 1 . . . . . . . . Matter Decay 1 | . . . . . . . . . 1 . . . . . . . . . . . Damage (minor) 1 | . . . . . . . . . . . . 1 . . . . . . . . Siege Activations 1 | . . . . . . . . . . . . . . . . . 1 . . . Total Turns 4 | . . . . . . . . . . . . . . . . . 4 . . . Longest Duration 4 | . . . . . . . . . . . . . . . . . 4 . . . Martial Activations . | . . . . . . . . . . . . . . . . . . . . . Shielding Activations . | . . . . . . . . . . . . . . . . . . . . . Robots Disrupted 1 | . . . . . . . . . . . . . . . . . . . . 1 Combat Hostiles 1 | . . . . . . . . . . . . . . . . . . . . 1 Robots Corrupted 4 | . . . . . . . 1 . 3 . . . . . . . . . . . Combat Hostiles 4 | . . . . . . . 1 . 3 . . . . . . . . . . . Parts Fried 4 | . . . . . . . . . . . . . . . . . . 4 . . Impact Corruptions . | . . . . . . . . . . . . . . . . . . . . . Robots Melted 3 | . . . 3 . . . . . . . . . . . . . . . . . Combat Hostiles 2 | . . . 2 . . . . . . . . . . . . . . . . . Parts Melted 36 | 1 . 2 23 . . . . . . . 2 3 . . 1 . 4 . . . Heat Transferred 19884 | 458 892 1681 7720 . . . 50 . 335 75 1200 1800 724 275 350 850 1924 425 500 625 Parts Sabotaged . | . . . . . . . . . . . . . . . . . . . . . Parts Stolen . | . . . . . . . . . . . . . . . . . . . . . Parts Stripped . | . . . . . . . . . . . . . . . . . . . . . Power Chain Reactions 2 | . . . . . . . 1 . 1 . . . . . . . . . . . Latent Energy Used 200 | . . . . . . . . . . . . . . . . . . 200 . . LE Corruption 3 | . . . . . . . . . . . . . . . . . . 3 . . Alert | -11 -10 -10 -8 -8 -7 -7 -7 -7 -7 -6 -6 -6 -6 -6 -6 -5 -5 -4 -4 -4 ------- Run | Yrd Mat Sub Mat Gar Fac Low Low Zio Dee Pro Fac Ext Cet Arc Hub Fac Gar Fac Was Fac Maximum Alert Level 4 | . . . 3 3 2 . . . . . 2 2 . 1 3 3 4 3 1 2 Low Security (%) 40 | 100 100 . 16 . . . . . . . 68 71 100 66 60 47 . . 42 37 Level 1 26 | . . . 52 . 14 . . . . . 1 28 . 33 16 12 . . 57 48 Level 2 15 | . . . 26 24 85 . . . . . 29 . . . 13 12 7 4 . 13 Level 3 14 | . . . 4 75 . . . . . . . . . . 9 26 59 95 . . Level 4 2 | . . . . . . . . . . . . . . . . . 32 . . . Level 5 . | . . . . . . . . . . . . . . . . . . . . . High Security . | . . . . . . . . . . . . . . . . . . . . . Max Security . | . . . . . . . . . . . . . . . . . . . . . Peak Influence 1432 | 10 102 . 723 811 676 . . . . . 553 401 163 231 810 811 1432 820 267 424 Initial 730 | . . . . 469 425 . . . . . 150 232 67 30 49 392 525 730 267 104 Average 347 | . 48 . 365 724 473 . . . . . 221 127 71 164 227 327 989 745 208 256 Influence Increases 9135 | 30 184 50 1473 372 451 280 375 . . 40 939 754 370 221 901 1027 957 259 32 420 Destroy 0b10 Robot/C 4240 | . 120 40 760 220 60 220 240 . . 20 400 340 160 80 300 400 540 180 . 160 Destroy 0b10 Robot/NC 455 | 30 25 . 160 10 45 . . . . 10 15 35 10 15 10 50 20 10 . 10 Destroy Leader 698 | . 24 10 212 20 12 30 30 . . 10 92 56 . . 60 52 30 40 . 20 Allied During Kill 751 | . . . . . 3 . . . . . . 141 139 95 319 . 54 . . . Successful Hack 174 | . . . 30 26 34 . . . . . 37 24 . . . 14 . . . 9 Disable Machine 900 | . . . 60 . 90 . . . . . 105 105 30 30 45 255 45 15 . 120 Anti-Garrison Action 350 | . . . . 50 . . . . . . . . . . 150 . 150 . . . Destroy Structure 697 | . . . 11 16 72 . . . . . 110 38 31 1 17 256 73 14 32 26 Advance Influence 150 | . . . . . . . . . . . 150 . . . . . . . . . Lose Combat Pursuer 720 | . 15 . 240 30 135 30 105 . . . 30 15 . . . . 45 . . 75 Influence Decreases 8971 | 30 122 112 750 284 586 653 545 133 . 40 464 1109 415 155 242 1076 316 886 648 405 Entered New Map 3385 | . . 30 . 254 386 251 59 133 . . . 243 53 45 92 408 226 662 498 45 Time Decay 4319 | 30 122 82 700 . 170 362 356 . . 40 464 666 262 110 90 361 . 214 130 160 Lost Part 567 | . . . 50 30 10 40 130 . . . . 40 . . . 7 30 10 20 200 Lost Ally 400 | . . . . . 20 . . . . . . 160 100 . 60 . 60 . . . Purge Threat 300 | . . . . . . . . . . . . . . . . 300 . . . . Squads Dispatched 36 | . . . 12 . 3 . . . . . 6 3 . . 5 7 . . . . Investigation 6 | . . . 1 . 1 . . . . . 1 2 . . . 1 . . . . Extermination 4 | . . . . . . . . . . . 2 . . . . 2 . . . . Reinforcement 14 | . . . 3 . 2 . . . . . 3 1 . . 2 3 . . . . Assault 3 | . . . . . . . . . . . . . . . 2 1 . . . . Garrison 9 | . . . 8 . . . . . . . . . . . 1 . . . . . Intercept . | . . . . . . . . . . . . . . . . . . . . . Searches Triggered . | . . . . . . . . . . . . . . . . . . . . . Construction Impeded 5 | . . . 1 . 1 . . . . . . 1 . . 1 1 . . . . Haulers Reinforced 2 | . . . . . . . . . . . . . . . 1 1 . . . . Active Scanning Responses . | . . . . . . . . . . . . . . . . . . . . . Cargo Convoy Interrupts . | . . . . . . . . . . . . . . . . . . . . . Stealth | -11 -10 -10 -8 -8 -7 -7 -7 -7 -7 -6 -6 -6 -6 -6 -6 -5 -5 -4 -4 -4 --------- Run | Yrd Mat Sub Mat Gar Fac Low Low Zio Dee Pro Fac Ext Cet Arc Hub Fac Gar Fac Was Fac Distress Signals 12 | . . . 7 . 2 . . . . . 1 . 1 . . 1 . . . . Communications Jammed . | . . . . . . . . . . . . . . . . . . . . . Distress Signals . | . . . . . . . . . . . . . . . . . . . . . Times Spotted 360 | . 9 8 77 13 13 13 17 . 53 1 26 22 9 4 11 31 22 14 8 9 Peak Tracking Total 37 | . 3 2 5 11 9 4 5 . 37 1 4 4 5 1 5 8 5 5 5 5 Tactical Retreats 32 | . 1 . 9 1 6 1 3 . 1 . 2 1 . . . . 3 . 1 3 Traps | -11 -10 -10 -8 -8 -7 -7 -7 -7 -7 -6 -6 -6 -6 -6 -6 -5 -5 -4 -4 -4 ------- Run | Yrd Mat Sub Mat Gar Fac Low Low Zio Dee Pro Fac Ext Cet Arc Hub Fac Gar Fac Was Fac Traps Triggered 17 | . 1 2 . . 1 . . . . . . 6 . . . . 5 2 . . Indirectly 1 | . . . . . . . . . . . . . . . . . . 1 . . Trap Hack Attempts . | . . . . . . . . . . . . . . . . . . . . . Triggered . | . . . . . . . . . . . . . . . . . . . . . Disarmed . | . . . . . . . . . . . . . . . . . . . . . Reprogrammed . | . . . . . . . . . . . . . . . . . . . . . Reused . | . . . . . . . . . . . . . . . . . . . . . Traps Extracted . | . . . . . . . . . . . . . . . . . . . . . Installed . | . . . . . . . . . . . . . . . . . . . . . Triggered . | . . . . . . . . . . . . . . . . . . . . . Machines | -11 -10 -10 -8 -8 -7 -7 -7 -7 -7 -6 -6 -6 -6 -6 -6 -5 -5 -4 -4 -4 ---------- Run | Yrd Mat Sub Mat Gar Fac Low Low Zio Dee Pro Fac Ext Cet Arc Hub Fac Gar Fac Was Fac Machines Disabled 66 | . . 1 4 1 6 . . . 1 . 7 7 2 2 4 17 5 1 . 8 Max in Single Turn 7 | . . 1 1 1 2 . . . 1 . 1 1 2 1 . 6 1 1 . 7 Garrison Access 2 | . . . . . . . . . . . 1 . . . 1 . . . . . Garrison Relay 3 | . . . . 1 . . . . . . . . . . . . 2 . . . Machines Repaired . | . . . . . . . . . . . . . . . . . . . . . Machines Dismantled . | . . . . . . . . . . . . . . . . . . . . . Machines Sabotaged . | . . . . . . . . . . . . . . . . . . . . . Overloaded Fab Kills . | . . . . . . . . . . . . . . . . . . . . . Hacking | -11 -10 -10 -8 -8 -7 -7 -7 -7 -7 -6 -6 -6 -6 -6 -6 -5 -5 -4 -4 -4 --------- Run | Yrd Mat Sub Mat Gar Fac Low Low Zio Dee Pro Fac Ext Cet Arc Hub Fac Gar Fac Was Fac Machines Accessed 41 | . 1 1 10 2 2 . 1 . . . 5 9 . . . 8 1 . . 1 Terminals 33 | . 1 . 7 2 2 . 1 . . . 3 9 . . . 6 1 . . 1 Fabricators 1 | . . . . . . . . . . . . . . . . 1 . . . . Repair Stations 1 | . . . . . . . . . . . 1 . . . . . . . . . Recycling Units 2 | . . . 2 . . . . . . . . . . . . . . . . . Scanalyzers . | . . . . . . . . . . . . . . . . . . . . . Garrison Access 3 | . . . 1 . . . . . . . 1 . . . . 1 . . . . Total Hacks 117 | . 3 1 34 3 7 . 1 . . . 11 26 . . . 25 2 . . 4 Successful 55 | . 1 1 16 2 4 . 1 . . . 7 12 . . . 10 . . . 1 Failed 62 | . 2 . 18 1 3 . . . . . 4 14 . . . 15 2 . . 3 Catastrophic 11 | . . . 3 . 1 . . . . . . 3 . . . 4 . . . . Database Lockouts . | . . . . . . . . . . . . . . . . . . . . . Manual 83 | . 1 . 24 . 4 . . 4 . . 9 19 1 . . 17 . . . 4 Terminals 104 | . 3 . 28 3 7 . 1 . . . 8 26 . . . 22 2 . . 4 Fabricators 1 | . . . . . . . . . . . . . . . . 1 . . . . Repair Stations 2 | . . . . . . . . . . . 2 . . . . . . . . . Recycling Units 5 | . . . 5 . . . . . . . . . . . . . . . . . Scanalyzers . | . . . . . . . . . . . . . . . . . . . . . Garrison Access 4 | . . . 1 . . . . . . . 1 . . . . 2 . . . . Terminal Hacks 24 | . . 1 4 2 3 . 1 . . . 3 4 . . . 5 . . . 1 Record 1 | . . . . . . . 1 . . . . . . . . . . . . . Part Schematic 1 | . . . . . 1 . . . . . . . . . . . . . . . Robot Analysis 2 | . . . 1 . 1 . . . . . . . . . . . . . . . Prototype ID Bank 3 | . . . 1 . . . . . . . . 1 . . . 1 . . . . Open Door 3 | . . . . . . . . . . . 1 2 . . . . . . . . Branch Access Points 3 | . . . 1 . 1 . . . . . . . . . . . . . . 1 Emergency Access Points 1 | . . . . 1 . . . . . . . . . . . . . . . . Terminal Index 2 | . . . 1 . . . . . . . 1 . . . . . . . . . Alert Level 3 | . . . . . . . . . . . . 1 . . . 2 . . . . Unreport Threat 2 | . . . . . . . . . . . . . . . . 2 . . . . Zone Layout 1 | . . . . . . . . . . . 1 . . . . . . . . . Security Stations 1 | . . . . 1 . . . . . . . . . . . . . . . . Proto ID Catalog 1 | . . 1 . . . . . . . . . . . . . . . . . . Fabricator Hacks . | . . . . . . . . . . . . . . . . . . . . . Repair Station Hacks . | . . . . . . . . . . . . . . . . . . . . . Recycling Unit Hacks 2 | . . . 2 . . . . . . . . . . . . . . . . . Retrieve Components 2 | . . . 2 . . . . . . . . . . . . . . . . . Scanalyzer . | . . . . . . . . . . . . . . . . . . . . . Garrison Access Hacks 3 | . . . 1 . . . . . . . 1 . . . . 1 . . . . Unlock Access 2 | . . . 1 . . . . . . . . . . . . 1 . . . . Seal Access 1 | . . . . . . . . . . . 1 . . . . . . . . . Unauthorized Hacks 26 | . 1 . 9 . 1 . . . . . 3 8 . . . 4 . . . . Terminals 25 | . 1 . 9 . 1 . . . . . 2 8 . . . 4 . . . . Assimilate 1 | . . . 1 . . . . . . . . . . . . . . . . . Botnet 1 | . . . . . . . . . . . . 1 . . . . . . . . Operators 4 | . . . 1 . . . . . . . 1 1 . . . 1 . . . . Skim 19 | . 1 . 7 . 1 . . . . . 1 6 . . . 3 . . . . Fabricators . | . . . . . . . . . . . . . . . . . . . . . Repair Stations 1 | . . . . . . . . . . . 1 . . . . . . . . . Patch 1 | . . . . . . . . . . . 1 . . . . . . . . . Recycling Units . | . . . . . . . . . . . . . . . . . . . . . Scanalyzers . | . . . . . . . . . . . . . . . . . . . . . Garrison Access . | . . . . . . . . . . . . . . . . . . . . . Data Cores Recovered 3 | . . . 1 . . . . . . . 1 1 . . . . . . . . Used 1 | . . . 1 . . . . . . . . . . . . . . . . . Hacking Detections 33 | . 1 . 8 2 2 . . . . . 3 7 . . . 8 1 . . 1 Full Trace Events 5 | . . . 1 . 1 . . . . . . 1 . . . 1 1 . . . Feedback Events 1 | . . . . . . . . . . . . . . . . . 1 . . . Corruption 1 | . . . . . . . . . . . . . . . . . 1 . . . Feedback Blocked . | . . . . . . . . . . . . . . . . . . . . . Robot Schematics Acquired 3 | . . . . . . . . 3 . . . . . . . . . . . . Robots Built . | . . . . . . . . . . . . . . . . . . . . . Authchips . | . . . . . . . . . . . . . . . . . . . . . Time . | . . . . . . . . . . . . . . . . . . . . . Total Robot Build Rating . | . . . . . . . . . . . . . . . . . . . . . Part Schematics Acquired 17 | . . . . . 1 . . 16 . . . . . . . . . . . . Parts Built . | . . . . . . . . . . . . . . . . . . . . . Authchips . | . . . . . . . . . . . . . . . . . . . . . Time . | . . . . . . . . . . . . . . . . . . . . . Total Part Build Rating . | . . . . . . . . . . . . . . . . . . . . . Parts Repaired . | . . . . . . . . . . . . . . . . . . . . . Time . | . . . . . . . . . . . . . . . . . . . . . Parts Recycled . | . . . . . . . . . . . . . . . . . . . . . Recycled Matter . | . . . . . . . . . . . . . . . . . . . . . Retrieved Matter . | . . . . . . . . . . . . . . . . . . . . . Retrieved Components 10 | . . . 10 . . . . . . . . . . . . . . . . . Parts Scanalyzed . | . . . . . . . . . . . . . . . . . . . . . Part Schematics Acquired . | . . . . . . . . . . . . . . . . . . . . . Parts Damaged . | . . . . . . . . . . . . . . . . . . . . . Bothacking | -11 -10 -10 -8 -8 -7 -7 -7 -7 -7 -6 -6 -6 -6 -6 -6 -5 -5 -4 -4 -4 ------------ Run | Yrd Mat Sub Mat Gar Fac Low Low Zio Dee Pro Fac Ext Cet Arc Hub Fac Gar Fac Was Fac Used RIF Installer . | . . . . . . . . . . . . . . . . . . . . . Robots Hacked . | . . . . . . . . . . . . . . . . . . . . . Non-combat . | . . . . . . . . . . . . . . . . . . . . . Combat . | . . . . . . . . . . . . . . . . . . . . . Robot Hacks Applied . | . . . . . . . . . . . . . . . . . . . . . Relay Couplers Released 14 | . . . . 5 . . . . . . . . . . 2 . 7 . . . Machine Destruction 14 | . . . . 5 . . . . . . . . . . 2 . 7 . . . Fabnet Peak Effective % . | . . . . . . . . . . . . . . . . . . . . . Robots Rewired 11 | . . . . . 1 . . . . . . 7 . . . . 3 . . . Allies Hacked . | . . . . . . . . . . . . . . . . . . . . . Hacks Repelled . | . . . . . . . . . . . . . . . . . . . . . Allies | -11 -10 -10 -8 -8 -7 -7 -7 -7 -7 -6 -6 -6 -6 -6 -6 -5 -5 -4 -4 -4 -------- Run | Yrd Mat Sub Mat Gar Fac Low Low Zio Dee Pro Fac Ext Cet Arc Hub Fac Gar Fac Was Fac Total Allies 31 | . . . . . 1 . . 4 . . . 18 5 . . . 3 . . . Largest Group 10 | . . . . . 1 . . 4 4 . . 10 10 9 8 . 3 . . . Highest-Rated Group 729 | . . . . . 34 . . 161 161 . . 415 729 716 565 . 153 . . . Highest-Rated Ally 159 | . . . . . 34 . . 42 42 . . 159 159 146 96 . 51 . . . Total Orders . | . . . . . . . . . . . . . . . . . . . . . Ally Attacks 228 | . . . . . 8 . . . . . . 66 36 16 72 . 30 . . . Total Damage 6182 | . . . . . 584 . . . . . . 1014 1369 510 2035 . 670 . . . Kills 44 | . . . . . 3 . . . . . . 6 7 5 17 . 6 . . . Allies Corrupted . | . . . . . . . . . . . . . . . . . . . . . Allies Melted . | . . . . . . . . . . . . . . . . . . . . . Intel | -11 -10 -10 -8 -8 -7 -7 -7 -7 -7 -6 -6 -6 -6 -6 -6 -5 -5 -4 -4 -4 ------- Run | Yrd Mat Sub Mat Gar Fac Low Low Zio Dee Pro Fac Ext Cet Arc Hub Fac Gar Fac Was Fac Active Infowar (turns) 8186 | 19 343 1785 1051 . 337 372 . . 523 2254 244 923 . . . 113 . . . 222 Terrain 2896 | . . . . . . . . . . 2254 244 285 . . . 113 . . . . Seismic 4129 | 19 343 1785 1051 . 337 372 . . . . . . . . . . . . . 222 Jamming 1161 | . . . . . . . . . 523 . . 638 . . . . . . . . Robot Analysis Total 2 | . . . 1 . 1 . . . . . . . . . . . . . . . Derelict Logs Recovered 8 | . . 1 . . . 2 1 2 . 2 . . . . . . . . . . Drone Launches . | . . . . . . . . . . . . . . . . . . . . . Drone Recoveries . | . . . . . . . . . . . . . . . . . . . . . Exploration | -11 -10 -10 -8 -8 -7 -7 -7 -7 -7 -6 -6 -6 -6 -6 -6 -5 -5 -4 -4 -4 ------------- Run | Yrd Mat Sub Mat Gar Fac Low Low Zio Dee Pro Fac Ext Cet Arc Hub Fac Gar Fac Was Fac Turns Passed 28886 | 280 343 1824 4562 748 352 831 811 2647 5105 2862 1169 3010 616 229 186 1087 1171 441 278 334 Spaces Moved 10903 | 138 160 765 1711 224 245 521 353 1087 2198 307 425 1217 191 80 74 441 372 198 113 83 Core 110 | 5 . 87 . . . . . . 18 . . . . . . . . . . . Treads 2808 | 133 160 654 355 65 1 . 132 1087 220 . . . . . . . 1 . . . Legs 5209 | . . . . . . . . . 1709 307 425 1217 191 80 74 441 371 198 113 83 Wheels 2525 | . . 24 1356 159 244 521 221 . . . . . . . . . . . . . Hover 251 | . . . . . . . . . 251 . . . . . . . . . . . Flight . | . . . . . . . . . . . . . . . . . . . . . Fastest Speed 50 | 50 160 110 80 145 115 115 145 240 52 195 189 189 210 210 210 180 179 132 135 135 Average Speed 189 | 156 160 176 187 260 128 132 175 240 179 195 195 199 221 210 210 208 195 180 168 135 Slowest Speed 960 | 160 160 300 960 560 560 145 240 240 480 195 199 285 226 210 210 210 240 185 186 135 Overloaded Moves . | . . . . . . . . . . . . . . . . . . . . . Propulsion Burnouts . | . . . . . . . . . . . . . . . . . . . . . Robots Hopped . | . . . . . . . . . . . . . . . . . . . . . Potential Cave-ins 32 | . . . . . . . . . . . . . . . . 7 . . 12 13 Cave-ins Triggered 18 | . . . . . . . . . . . . . . . . . . . 1 17 Exploration Rate (%) 47 | 9 26 40 91 45 11 65 55 86 90 51 17 97 67 71 17 19 55 8 70 4 Regions Visited 20 Branch Regions 10 Pre-discovered Areas 7 | . . 1 1 . . 1 . 1 . . . 3 . . . . . . . . Known Exits Taken 7 | . . . 1 . 1 1 . . . . 1 1 . . 1 1 . . . . Unknown Exits Taken 9 | 1 1 1 . . . . 1 1 1 1 . . 1 1 . . . . . . Scrap Searched 5 | . . . . . . . 2 2 . 1 . . . . . . . . . . Spaces Dug 129 | . . 2 1 1 . 9 . . 10 4 19 15 . 1 1 30 . . 21 15 Terrain Destroyed 687 | . . 45 1 1 50 52 34 . 87 17 116 33 9 1 7 139 32 6 29 28 Melee 14 | . . . 1 1 . 2 . . 10 . . . . . . . . . . . Projectile 233 | . . 3 . . . . . . 16 17 28 33 9 1 7 33 32 6 29 19 AOE 440 | . . 42 . . 50 50 34 . 61 . 88 . . . . 106 . . . 9 Terrain Rammed 20 | . . . . . . . . . . . . . . . . . . . . 20 Walls Destroyed . | . . . . . . . . . . . . . . . . . . . . . Machines Disabled . | . . . . . . . . . . . . . . . . . . . . . Actions | -11 -10 -10 -8 -8 -7 -7 -7 -7 -7 -6 -6 -6 -6 -6 -6 -5 -5 -4 -4 -4 --------- Run | Yrd Mat Sub Mat Gar Fac Low Low Zio Dee Pro Fac Ext Cet Arc Hub Fac Gar Fac Was Fac Total 17734 | 166 195 1130 2745 348 272 613 483 1125 3249 2549 690 1704 317 133 87 539 711 254 155 269 Wait 5312 | 1 6 271 747 81 4 35 60 9 817 2221 196 306 89 35 2 26 241 26 2 137 Move 10882 | 137 159 764 1711 223 244 520 352 1086 2197 306 424 1216 190 79 73 440 370 198 112 81 Hop . | . . . . . . . . . . . . . . . . . . . . . Pick Up 128 | 4 3 8 34 2 2 4 7 10 38 . 3 2 . 4 . 3 . 2 2 . Fast Attach 74 | 7 . 3 18 . . 2 2 1 32 . 3 1 1 . . . 3 1 . . Attach 59 | . . 2 5 3 2 3 13 . 18 . 2 3 . 3 . 1 . 2 . 2 Detach 53 | . . 1 2 . . . . . 7 . 7 12 2 6 . 7 2 5 2 . Swap 120 | . . 8 28 8 2 15 3 7 16 10 3 6 1 1 . 7 1 2 1 1 Drop 102 | . . 6 28 . 1 . 2 10 34 . 6 2 1 . . 7 2 2 1 . Fire 748 | 17 26 67 166 22 9 32 27 . 49 12 46 60 23 5 11 48 56 10 35 27 Melee 90 | . . . 3 9 . 2 17 2 41 . . . 10 . . . . 6 . . Ram 23 | . . . 3 . 1 . . . . . . . . . . . . . . 19 Kick 2 | . . . . . . . . . . . . 1 . . 1 . . . . . Crush 1 | . 1 . . . . . . . . . . . . . . . . . . . Escape Stasis 43 | . . . . . 2 . . . . . . 20 . . . . 19 . . 2 Rewire 97 | . . . . . 5 . . . . . . 75 . . . . 17 . . . Trap . | . . . . . . . . . . . . . . . . . . . . . Miscellaneous . | . . . . . . . . . . . . . . . . . . . . . Route ------- -11/Scrapyard -10/Materials (discovered 3 exits: [*Mat x2] / *Sub) -10/Subcaves (discovered 2 exits: *Mat x2) -8/Materials (discovered 4 exits: *Fac x3 / Gar) -8/Garrison -7/Factory (discovered 2 exits: *Low x2) -7/Lower Caves -7/Lower Caves (discovered 2 exits: *Fac / *Zio) -7/Zion -7/Deep Caves -6/Proximity Caves -6/Factory (discovered 3 exits: Fac / *Ext x2) -6/Extension (discovered 2 exits: *Fac / *Cet) -6/Cetus (discovered 2 exits: *Fac / [*Arc]) -6/Archives (discovered 2 exits: *Fac / [*Hub]) -6/Hub_04(d) -5/Factory (discovered 2 exits: Upp / Gar) -5/Garrison (discovered 2 exits: [*Fac x2]) -4/Factory -4/Waste -4/Factory (discovered 3 exits: Upp x2 / Arm) History --------- Turn | Location | Event 2 | -11/Scrapyard | Discovered new exit (range 16) 281 | -11/Scrapyard | Entered Materials 302 | -10/Materials | Build established: Mutant 347 | -10/Materials | Discovered new exit (range 16) 529 | -10/Materials | Discovered new exit (range 13) 616 | -10/Materials | Discovered new exit (range 6) 624 | -10/Materials | Entered Subcaves 625 | -10/Subcaves | Approached by a straggling Scientist 649 | -10/Subcaves | Learned location of Zion (-7) 649 | -10/Subcaves | Met a Zionite searching for "candidates" 1359 | -10/Subcaves | Discovered new exit (range 5) 1487 | -10/Subcaves | Visited 4L-MR0's lab 1521 | -10/Subcaves | Found Tower Shield 1578 | -10/Subcaves | Learned Materials trap positions 1788 | -10/Subcaves | Core integrity fell below 50% 1853 | -10/Subcaves | Shifting Twisted Machinery released Sub. Power Source 1888 | -10/Subcaves | Discovered new exit (range 13) 1926 | -10/Subcaves | Shifting Twisted Machinery released Humpback 2127 | -10/Subcaves | Core integrity fell below 20% 2150 | -10/Subcaves | Lost 3 parts (2n1w) 2448 | -10/Subcaves | Entered Materials 2448 | -8/Materials | Evolved 4 slots: Propulsion x1, Utility x2, Weapon x1 2449 | -8/Materials | Loaded intel: 11 trap records 2830 | -8/Materials | Garrison activated, responded to threat 2934 | -8/Materials | Garrison activated, responded to threat 2967 | -8/Materials | Build established: Hauler-Gunner 3160 | -8/Materials | Discovered new exit (range 7) 3578 | -8/Materials | Build established: Scavenger-Gunner 3887 | -8/Materials | Build established: Gunner 4011 | -8/Materials | Garrison activated, responded to threat 4308 | -8/Materials | Discovered new exit (range 12) 4486 | -8/Materials | Build established: Tank 4760 | -8/Materials | Discovered new exit (range 15) 4869 | -8/Materials | Build established: Gunner 5561 | -8/Materials | Build established: Mutant 5573 | -8/Materials | Core integrity fell below 50% 5986 | -8/Materials | Build established: Tank 6397 | -8/Materials | Garrison activated, responded to threat 6504 | -8/Materials | Learned 4 Lower Caves zone layouts 6575 | -8/Materials | Learned 2 Lower Caves zone layouts 6690 | -8/Materials | Learned 4 Recycling zone layouts 6732 | -8/Materials | Learned 2 Storage zone layouts 6784 | -8/Materials | Learned 4 Factory zone layouts 7010 | -8/Materials | Identified exit to Garrison 7010 | -8/Materials | Entered Garrison 7038 | -8/Garrison | Triggered checkpoint 7055 | -8/Garrison | Garrison Relay disabled 7086 | -8/Garrison | Learned Factory security intel 7150 | -8/Garrison | Triggered checkpoint 7233 | -8/Garrison | Destroyed 11 combat bots 7587 | -8/Garrison | Build established: Mutant 7726 | -8/Garrison | Discovered new exit (range 12) 7758 | -8/Garrison | Entered Factory 7758 | -7/Factory | Evolved 2 slots: Propulsion x1, Utility x1 7894 | -7/Factory | Identified exit to Lower Caves 8110 | -7/Factory | Entered Lower Caves 8111 | -7/Lower Caves | Identified exit to Lower Caves 8165 | -7/Lower Caves | Spotted B-75 Beast 8202 | -7/Lower Caves | Attracted the attention of an 0b10 checkpoint 8219 | -7/Lower Caves | Build established: Gunner 8523 | -7/Lower Caves | Lost 3 parts (1p1n1u) 8573 | -7/Lower Caves | Learned Factory stockpile data 8796 | -7/Lower Caves | Learned location of Extension (-6) 8941 | -7/Lower Caves | Entered another Lower Caves area 8989 | -7/Lower Caves | Discovered new exit (range 14) 9060 | -7/Lower Caves | Learned location of 2 exits from Factory 9132 | -7/Lower Caves | Build established: Scavenger-Tank 9279 | -7/Lower Caves | Attracted the attention of an 0b10 checkpoint 9358 | -7/Lower Caves | Lost 5 parts (2n1u2w) 9448 | -7/Lower Caves | Core integrity fell below 50% 9473 | -7/Lower Caves | Lost 8 parts (5n2u1w) 9710 | -7/Lower Caves | Discovered new exit (range 7) 9752 | -7/Lower Caves | Entered Zion 9987 | -7/Zion | Build established: Scavenger-Mutant 9989 | -7/Zion | System corruption cleaned by Quarantine Array 10321 | -7/Zion | Learned location of 1 exit from Factory 10674 | -7/Zion | Found Prototype Energy Gun 10796 | -7/Zion | Found CR-A16's Pointy Stick 10821 | -7/Zion | Learned location of Armory (-4) 10893 | -7/Zion | Acquired unknown access codes intercepted by a Zionite 11226 | -7/Zion | Met Imprinter 11267 | -7/Zion | Imprinted 11269 | -7/Zion | Declared Zion's savior 11490 | -7/Zion | Found Prototype Device 11490 | -7/Zion | Identified Mobile Refinery Mk. CCLXVII 12349 | -7/Zion | Opened final containment barrier to the Deep Caves 12387 | -7/Zion | Discovered new exit (range 3) 12387 | -7/Zion | Saw the warning signs outside the Deep Caves entrance 12399 | -7/Zion | Entered Deep Caves 12399 | -7/Deep Caves | Accompanied by 4 allies 12708 | -7/Deep Caves | Found Unknown Processor 12712 | -7/Deep Caves | Found Surveybot 24 Scanner 12843 | -7/Deep Caves | Attacked by Z-Imprinter 12854 | -7/Deep Caves | Destroyed Z-Imprinter 12870 | -7/Deep Caves | Build established: Mutant 12884 | -7/Deep Caves | Lost 4 parts (1p3n) 13048 | -7/Deep Caves | Z-Facility disabled 13080 | -7/Deep Caves | Found Prototype Protection 13080 | -7/Deep Caves | Identified Zio. Weapon Casing 13096 | -7/Deep Caves | Lost 6 parts (2p2n1u1w) 13241 | -7/Deep Caves | Lost 3 parts (1n2u) 13413 | -7/Deep Caves | Lost 3 parts (2n1u) 13454 | -7/Deep Caves | Found Zio. Weapon Casing 13535 | -7/Deep Caves | Core integrity fell below 20% 13551 | -7/Deep Caves | Found Zio. Weapon Casing 13575 | -7/Deep Caves | Lost 6 parts (2n3u1w) 13587 | -7/Deep Caves | Found Prototype Protection 13587 | -7/Deep Caves | Identified Zio. Heavy Carapace 13598 | -7/Deep Caves | Attached Tower Shield, gained temporary slots: Power, Propulsion x2, Utility x2, Weapon x2 13614 | -7/Deep Caves | Found Zio. Weapon Casing 13839 | -7/Deep Caves | Build established: Scavenger-Mutant 14636 | -7/Deep Caves | Build established: Mutant 15016 | -7/Deep Caves | Build established: Tank 15137 | -7/Deep Caves | Spotted AG-57617 15178 | -7/Deep Caves | Destroyed AG-57617 15295 | -7/Deep Caves | Spotted AG-35132 15321 | -7/Deep Caves | Destroyed AG-35132 15349 | -7/Deep Caves | Lost 5 parts (4u1w) 15466 | -7/Deep Caves | Found Zio. Heavy Carapace 15470 | -7/Deep Caves | Found Zio. Heavy Carapace 15609 | -7/Deep Caves | Triggered Deep Caves wall 15609 | -7/Deep Caves | Spotted AS-64664 15609 | -7/Deep Caves | Spotted AS-31975 15617 | -7/Deep Caves | Destroyed AS-31975 15625 | -7/Deep Caves | Destroyed AS-64664 15656 | -7/Deep Caves | Destroyed 35 combat bots 15664 | -7/Deep Caves | Exposed GOLEM chamber 15668 | -7/Deep Caves | Found GOLEM Unit 15879 | -7/Deep Caves | Build established: Scavenger-Mutant 16014 | -7/Deep Caves | Found Zio. Weapon Casing 16017 | -7/Deep Caves | Found Zio. Weapon Casing 16368 | -7/Deep Caves | Found Prototype Energy Cannon 16393 | -7/Deep Caves | Found GOLEM Unit 16398 | -7/Deep Caves | Found GOLEM Unit 16403 | -7/Deep Caves | Found GOLEM Unit 16408 | -7/Deep Caves | Found GOLEM Unit 16413 | -7/Deep Caves | Found GOLEM Unit 16418 | -7/Deep Caves | Found GOLEM Unit 16855 | -7/Deep Caves | Discovered new exit (range 6) 16865 | -7/Deep Caves | Build established: Scavenger-Tank 17195 | -7/Deep Caves | Build established: Golem 17504 | -7/Deep Caves | Entered Proximity Caves 17507 | -6/Proximity Caves | Spotter reported a threat 18791 | -6/Proximity Caves | Learned Factory garrison access intel 19299 | -6/Proximity Caves | Learned Factory stockpile data 20341 | -6/Proximity Caves | Discovered new exit (range 13) 20366 | -6/Proximity Caves | Entered Factory 20366 | -6/Factory | Evolved 2 slots: Power x1, Utility x1 20367 | -6/Factory | Identified exit to Extension 20367 | -6/Factory | Identified exit to Factory 20369 | -6/Factory | Loaded intel: 4 garrison access locations 21216 | -6/Factory | Destroyed 10 combat bots 21535 | -6/Factory | Entered Extension 21663 | -6/Extension | Rescued a captive Derelict 21854 | -6/Extension | Rescued a captive Derelict 21856 | -6/Extension | Rescued a captive Derelict 21907 | -6/Extension | Rescued a captive Derelict 21918 | -6/Extension | Rescued a captive Derelict 21958 | -6/Extension | Rescued a captive Derelict 22050 | -6/Extension | Spotted B-75 Beast 22052 | -6/Extension | Spotted B-75 Beast 22077 | -6/Extension | Destroyed B-75 Beast 22106 | -6/Extension | Lost 8 allies 22141 | -6/Extension | Destroyed B-75 Beast 22681 | -6/Extension | Rescued a captive Derelict 22682 | -6/Extension | Rescued a captive Derelict 23640 | -6/Extension | Rescued a captive Derelict 23641 | -6/Extension | Rescued a captive Derelict 23820 | -6/Extension | Build established: Commander-Golem 24012 | -6/Extension | Rescued A7 24062 | -6/Extension | Identified exit to Cetus 24123 | -6/Extension | Discovered exit to Factory (range 10) 24138 | -6/Extension | Learned location of Warlord (-5) 24309 | -6/Extension | Learned Factory terminal intel 24310 | -6/Extension | Identified Latent Energy Streamer 24344 | -6/Extension | Learned location of 1 exit from Cetus 24441 | -6/Extension | Learned location of 1 exit from Lower Caves 24493 | -6/Extension | Learned location of 1 exit from Hub_04(d) 24545 | -6/Extension | Entered Cetus 24545 | -6/Cetus | Accompanied by 10 allies (A7) 24550 | -6/Cetus | Acquired a Cetus Manufacturing Module code from A7 24582 | -6/Cetus | Spotted Cetus Guard 24582 | -6/Cetus | Spotted Cetus Guard 24583 | -6/Cetus | Spotted Cetus Guard 24584 | -6/Cetus | Spotted Cetus Guard 24590 | -6/Cetus | Destroyed Cetus Guard 24592 | -6/Cetus | Allies destroyed Cetus Guard 24605 | -6/Cetus | Allies destroyed Cetus Guard 24610 | -6/Cetus | Allies destroyed Cetus Guard 24640 | -6/Cetus | Lost 6 allies 24715 | -6/Cetus | Escorted A7 to Cetus Mainframe 24758 | -6/Cetus | Started Cetus Manufacturing Module 24783 | -6/Cetus | Manufactured an Enhanced Grunt 24808 | -6/Cetus | Manufactured an Enhanced Grunt 24833 | -6/Cetus | Manufactured an Enhanced Grunt 24838 | -6/Cetus | Discovered new exit (range 16) 24858 | -6/Cetus | Manufactured an Enhanced Grunt 24883 | -6/Cetus | Manufactured an Enhanced Grunt 24916 | -6/Cetus | Spotted Cetus Guard 24916 | -6/Cetus | Spotted Cetus Guard 24916 | -6/Cetus | Spotted Cetus Guard 24916 | -6/Cetus | Spotted Cetus Guard 24922 | -6/Cetus | Allies destroyed Cetus Guard 24924 | -6/Cetus | Allies destroyed Cetus Guard 24925 | -6/Cetus | Destroyed Cetus Guard 24928 | -6/Cetus | Allies destroyed Cetus Guard 24945 | -6/Cetus | Scared off Revision 17 25161 | -6/Cetus | Entered Archives 25161 | -6/Archives | Accompanied by 9 allies (A7) 25166 | -6/Archives | Received a hacking code to weaken MAIN.C 25243 | -6/Archives | Discovered exit to Factory (range 15) 25264 | -6/Archives | Discovered new exit (range 14) 25390 | -6/Archives | Entered Hub_04(d) 25390 | -6/Hub_04(d) | Accompanied by 8 allies 25485 | -6/Hub_04(d) | Garrison activated, responded to threat 25545 | -6/Hub_04(d) | Core integrity fell below 50% 25557 | -6/Hub_04(d) | Lost 4 allies 25576 | -6/Hub_04(d) | Entered Factory 25576 | -5/Factory | Evolved 2 slots: Utility x2 25577 | -5/Factory | Identified exit to Upper Caves 25579 | -5/Factory | Loaded intel: 26 terminal locations 25811 | -5/Factory | Build established: Hacker-Golem 26123 | -5/Factory | Build established: Golem 26476 | -5/Factory | First assault squad dispatched 26559 | -5/Factory | Identified exit to Garrison 26663 | -5/Factory | Entered Garrison 26683 | -5/Garrison | Triggered checkpoint 26748 | -5/Garrison | Garrison Relay disabled 26865 | -5/Garrison | Triggered checkpoint 26966 | -5/Garrison | Attempted to install RIF, but system incompatible 27189 | -5/Garrison | Discovered new exit (range 10) 27450 | -5/Garrison | Garrison Relay disabled 27652 | -5/Garrison | Attempted to access garrison exit controls, blocked by remote lockdown 27707 | -5/Garrison | Triggered checkpoint 27737 | -5/Garrison | Triggered checkpoint 27803 | -5/Garrison | Discovered new exit (range 14) 27805 | -5/Garrison | Triggered checkpoint 27834 | -5/Garrison | Entered Factory 27834 | -4/Factory | Evolved 2 slots: Utility x2 28018 | -4/Factory | Spotted B-86 Titan 28047 | -4/Factory | Revealed the true nature of CR-A16's Pointy Stick 28053 | -4/Factory | Destroyed B-86 Titan 28275 | -4/Factory | Sucked down chute 28275 | -4/Factory | Entered Waste 28282 | -4/Waste | Found Prototype Device 28290 | -4/Waste | EMP discharged 28290 | -4/Waste | System corruption reached 10% 28332 | -4/Waste | Spotted C-40 Crusher 28345 | -4/Waste | Spotted C-40 Crusher 28373 | -4/Waste | Identified Exp. Transmission Jammer 28376 | -4/Waste | Crushed by falling debris 28390 | -4/Waste | EMP discharged 28396 | -4/Waste | Spotted C-40 Crusher 28414 | -4/Waste | Spotted C-40 Crusher 28420 | -4/Waste | Spotted C-40 Crusher 28475 | -4/Waste | Destroyed C-40 Crusher 28487 | -4/Waste | Crushed by Compactor (1 part destroyed) 28490 | -4/Waste | EMP discharged 28532 | -4/Waste | Discovered new exit (range 12) 28553 | -4/Waste | Entered Factory 28602 | -4/Factory | Identified exit to Upper Caves 28602 | -4/Factory | Identified exit to Armory 28686 | -4/Factory | Crushed by falling debris 28687 | -4/Factory | System corruption reached 30% 28723 | -4/Factory | Crushed by falling debris 28733 | -4/Factory | Crushed by falling debris 28739 | -4/Factory | Crushed by falling debris 28749 | -4/Factory | Crushed by falling debris 28750 | -4/Factory | Crushed by falling debris 28750 | -4/Factory | Core integrity fell below 50% 28761 | -4/Factory | Crushed by falling debris 28763 | -4/Factory | Crushed by falling debris 28783 | -4/Factory | Crushed by falling debris 28785 | -4/Factory | Crushed by falling debris 28814 | -4/Factory | Crushed by falling debris 28814 | -4/Factory | Crushed by falling debris 28817 | -4/Factory | Crushed by falling debris 28836 | -4/Factory | Crushed by falling debris 28842 | -4/Factory | Crushed by falling debris 28848 | -4/Factory | Lost 19 parts (1p3n11u4w) 28853 | -4/Factory | Crushed by falling debris 28865 | -4/Factory | Crushed by falling debris 28869 | -4/Factory | Core integrity fell below 20% 28887 | -4/Factory | Core destroyed Last Messages --------------- 28878_ System corrupted: Matter fused (-7). 28878_ Slammed into Earth. 28878_ Destabilizing: Core damaged (-11). 28879_ Slammed into Earth. 28879_ Destabilizing: Core damaged (-11). 28880_ Slammed into Earth. 28880_ Destabilizing: System corrupted (+1). 28881_ Slammed into Earth. 28881_ Destabilizing: Core damaged (-34). 28882_ Slammed into Earth. 28882_ Destabilizing: Core damaged (-23). 28883_ Slammed into Earth. 28884_ Destabilizing: System corrupted (+1). 28884_ Destabilizing: Core damaged (-11). 28885_ Slammed into Earth. 28885_ Destabilizing: Core damaged (-23). 28886_ Slammed into Earth. 28886_ Destabilizing: System corrupted (+1). 28887_ Slammed into Earth. 28887_ Destabilizing: Core damaged (-46). Map ----- +----------------------------------------------------+ | ?????????????????????????????????????????????????? | | ?????????????????????????????????????????????????? | | ?????????????????????????????????????????????????? | | ?????????????????????????????????????????????????? | | ?????????????????????????????????????????????????? | | ?????????????????????????????????????????????????? | | ?????????????????????????????????????????????????? | | ?????????????????????????????????????????????????? | | ?????????????????????????????????????????????????? | | ?????????????????????????????????????????????????? | | ?????????????????????????????????????????????????? | | ?????????????????????????????????????????????????? | | ?????????????????????????????????????????????????? | | ?????????????????????????????????????????????????? | | ?????????????????????????????????????????????????? | | ?????????????????????????????????????????????????? | | ?????????????????????????????????????????????????? | | ?????????????????????????????????????????????????? | | ?????????????????????????????????????????????????? | | ?????????????????????????????????????????????????? | | ?????????????????????????????????????????????????? | | ?????????????????????????????????????????????????? | | ???????????????????????????##????????????????????? | | ?????????????????????????## #????????????????????? | | ????????????????????????####?????????????????????? | | ????????????????????????#@##?????????????????????? | | ???????????????????????#####?????????????????????? | | ?????????????????????######??????????????????????? | | ?????????????????????#[!##???????????????????????? | | ?????????????????????#%##????????????????????????? | | ?????????????????????## #????????????????????????? | | ?????????????????????# ##????????????????????????? | | ???????????????????### ##????????????????????????? | | ???????????????????# ##?????????????????????????? | | ??????????????????## ##??????????????????????????? | | ?????????????????##%##???????????????????????????? | | ?????#############/##????????????????????????????? | | ?????# ##?????????????????????????????? | | ?????# """""" #??????????????????????????????? | | ?????# """""" #??????????????????????????????? | | ?????# """"" #??????????????????????????????? | | ?????# """"" #??????????????????????????????? | | ?????# #??????????????????????????????? | | ?????# #??????????????????????????????? | | ?????# #??????????????????????????????? | | ?????# ! #??????????????????????????????? | | ?????# #??????????????????????????????? | | ?????# #??????????????????????????????? | | ?????# #???? ?????????????????????????? | | ???#########"%#####"""" ##+??????????????????????? | +----------------------------------------------------+ Best States ------------- Heat Dissipation 89 Energy Generation 49 Energy Capacity 1300 Matter Stores 350 Matter Capacity 350 Sight Range 16 Terrain Scan Range 24 Terrain Scan Density 210 Jamming Range 12 Additional Mass Support 20 Armor Coverage 3200 Resistance: KI 15 Resistance: TH 15 Resistance: EX 15 Resistance: EM 15 Resistance: I 15 Resistance: S 15 Resistance: P 15 Utility Shielding 66 Weapon Shielding 100 Weapon Cycling 30 Phase Shifting 8 Evasion (%) 63 Targeting Accuracy 8 Core Analysis 8 Recoil Reduction 4 Energy Filtering 30 Offensive Hacking 24 Defensive Hacking 12 Item Schematics ----------------- Imp. Cryofiber Web | -7/Factory | Hacked Hvy. Machine Gun | -7/Zion | Archive Shock Absorption System | -7/Zion | Archive Med. Treads | -7/Zion | Archive Imp. Actuator Array | -7/Zion | Archive Antigrav System | -7/Zion | Archive System Restoration Module | -7/Zion | Archive Power Amplifier | -7/Zion | Archive Hvy. Ion Cannon | -7/Zion | Archive Fission Core | -7/Zion | Archive Adv. Assault Cannon | -7/Zion | Archive Imp. System Shield | -7/Zion | Archive Proton Cannon | -7/Zion | Archive Imp. Shield Generator | -7/Zion | Archive Imp. Thermal Shield | -7/Zion | Archive EM Disruption Field | -7/Zion | Archive Hvy. Mass Driver | -7/Zion | Archive Robot Schematics ------------------ G-47 Trooper | -7/Zion | Archive B-48 Gladiator | -7/Zion | Archive L-31 Rogue | -7/Zion | Archive Fabricated ------------ Nothing Repaired ---------- Nothing Alien Tech Used ----------------- None Achievements -------------- None Challenges ------------ None Game ------ Seed NanofilamentsMassAutogun Manual? 0 Play Time 02:36:28 Cumulative 487.9 hours Start 2025.05.08 @ 17:04:55 End 2025.05.09 @ 18:40:13 Sessions 7 Manual Loads 0 Difficulty Rogue Special Mode None Game No. 215 Rogue 215 Adventurer 0 Explorer 0 Win Type - Total 18 Types 10/2/6/0/0/0/0/0/0/0 Lore% 88 Gallery% 84 Achievement% 78 Wizard Run 0 Options --------- Layout 0 ASCII 0 Keyboard 1 Movement Numpad Keybinds 0 Fullscreen 2 Font 12/Smallcaps Map View 83x54 Zoom Use 0% Tactical HUD 1 Map Filters NONE Filters NONE Steam 1 RUN: de51b6e5-a62a-4bf2-acb6-4eb6eb7e5516